[Event "*** SCC Grand Prix: Titled Tuesday Blitz"]
[Site "Chess.com"]
[Date "2020.06.02"]
[Round "3"]
[White "AliKa2810"]
[Black "Guenplen"]
[Result "0-1"]
[WhiteElo "2570"]
[BlackElo "2918"]
[TimeControl "180+1"]
[EndTime "10:29:09 PDT"]
[Termination "Guenplen won on time"]

1. d4 {[%clk 0:03:00.9]} 1... Nf6 {[%clk 0:02:59.5]} 2. c4 {[%clk 0:03:01.4]}
2... b6 {[%clk 0:02:59.8]} 3. f3 {[%clk 0:03:00.9]} 3... Nc6 {[%clk 0:02:59.4]}
4. d5 {[%clk 0:02:59.3]} 4... Ne5 {[%clk 0:02:56.2]} 5. e4 {[%clk 0:02:59.6]}
5... e6 {[%clk 0:02:56]} 6. Nc3 {[%clk 0:02:58.8]} 6... Bc5 {[%clk 0:02:47.3]}
7. Nh3 {[%clk 0:02:38.9]} 7... O-O {[%clk 0:02:23.4]} 8. Be2 {[%clk 0:02:38.2]}
8... d6 {[%clk 0:02:17.8]} 9. Nf2 {[%clk 0:02:35.6]} 9... c6 {[%clk 0:01:58.4]}
10. f4 {[%clk 0:02:14.8]} 10... Nxc4 {[%clk 0:01:40.9]} 11. Bxc4 {[%clk
0:02:13.4]} 11... exd5 {[%clk 0:01:41.2]} 12. Be2 {[%clk 0:01:52]} 12... Bxf2+
{[%clk 0:01:27.9]} 13. Kxf2 {[%clk 0:01:52]} 13... dxe4 {[%clk 0:01:28.8]} 14.
Re1 {[%clk 0:01:50.9]} 14... d5 {[%clk 0:01:28.3]} 15. Kg1 {[%clk 0:01:27.2]}
15... d4 {[%clk 0:01:24.1]} 16. Nb1 {[%clk 0:00:58]} 16... c5 {[%clk 0:01:24.1]}
17. h3 {[%clk 0:00:50.4]} 17... Bb7 {[%clk 0:01:17.6]} 18. Nd2 {[%clk
0:00:49.4]} 18... Bd5 {[%clk 0:00:44.9]} 19. b3 {[%clk 0:00:39.5]} 19... Re8
{[%clk 0:00:44.4]} 20. Bb2 {[%clk 0:00:39]} 20... Qc7 {[%clk 0:00:35.8]} 21. Bb5
{[%clk 0:00:32.9]} 21... Re7 {[%clk 0:00:30.8]} 22. Bc4 {[%clk 0:00:14]} 22...
Bxc4 {[%clk 0:00:25]} 23. Nxc4 {[%clk 0:00:13.1]} 23... Qxf4 {[%clk 0:00:25.4]}
24. Rf1 {[%clk 0:00:13.5]} 24... Qg5 {[%clk 0:00:22.9]} 25. Bxd4 {[%clk
0:00:09.6]} 25... cxd4 {[%clk 0:00:21.8]} 26. Qxd4 {[%clk 0:00:10.5]} 26... Qc5
{[%clk 0:00:20.5]} 27. Rad1 {[%clk 0:00:09.4]} 27... Qxd4+ {[%clk 0:00:19.2]}
28. Rxd4 {[%clk 0:00:10.3]} 28... h6 {[%clk 0:00:18.6]} 29. Rfd1 {[%clk
0:00:10.4]} 29... Rc8 {[%clk 0:00:11.5]} 30. Kf2 {[%clk 0:00:09.7]} 30... g6
{[%clk 0:00:10.1]} 31. Ke3 {[%clk 0:00:09.5]} 31... Kg7 {[%clk 0:00:10.5]} 32.
Rd8 {[%clk 0:00:08.3]} 32... Rcc7 {[%clk 0:00:04.7]} 33. a4 {[%clk 0:00:06.3]}
33... Nd7 {[%clk 0:00:02.2]} 34. Rd4 {[%clk 0:00:04.9]} 34... Nc5 {[%clk
0:00:02.6]} 35. Nd6 {[%clk 0:00:02.7]} 35... Nxb3 {[%clk 0:00:02.1]} 36. Ne8+
{[%clk 0:00:01]} 36... Rxe8 {[%clk 0:00:02]} 0-1

[Event "*** SCC Grand Prix: Titled Tuesday Blitz"]
[Site "Chess.com"]
[Date "2020.06.02"]
[Round "3"]
[White "awesomevishesh"]
[Black "dalmatinac101"]
[Result "0-1"]
[WhiteElo "2446"]
[BlackElo "2853"]
[TimeControl "180+1"]
[EndTime "10:29:09 PDT"]
[Termination "dalmatinac101 won by resignation"]

1. d4 {[%clk 0:03:00.9]} 1... g6 {[%clk 0:03:00.9]} 2. c4 {[%clk 0:03:00.1]}
2... Bg7 {[%clk 0:03:01.3]} 3. Nf3 {[%clk 0:03:00.2]} 3... Nf6 {[%clk
0:03:00.8]} 4. g3 {[%clk 0:02:56.7]} 4... c5 {[%clk 0:03:01]} 5. d5 {[%clk
0:02:56.3]} 5... d6 {[%clk 0:03:00.8]} 6. Nc3 {[%clk 0:02:56.3]} 6... e6 {[%clk
0:03:01.2]} 7. Bg2 {[%clk 0:02:56.3]} 7... exd5 {[%clk 0:03:01.7]} 8. cxd5
{[%clk 0:02:57.2]} 8... O-O {[%clk 0:03:01.9]} 9. O-O {[%clk 0:02:57.3]} 9...
Re8 {[%clk 0:03:02.8]} 10. Re1 {[%clk 0:02:57.2]} 10... Ne4 {[%clk 0:03:02.4]}
11. Nxe4 {[%clk 0:02:53.5]} 11... Rxe4 {[%clk 0:03:03.3]} 12. Qc2 {[%clk
0:02:51.2]} 12... Bf5 {[%clk 0:02:58.7]} 13. Bh3 {[%clk 0:02:46.7]} 13... Re5
{[%clk 0:02:15.1]} 14. Bxf5 {[%clk 0:02:31.8]} 14... Rxf5 {[%clk 0:02:15.2]} 15.
Bf4 {[%clk 0:02:16.4]} 15... Rxd5 {[%clk 0:02:06]} 16. e4 {[%clk 0:02:06.8]}
16... Rh5 {[%clk 0:02:06]} 17. Rad1 {[%clk 0:02:04]} 17... Nc6 {[%clk
0:02:06.6]} 18. Rxd6 {[%clk 0:01:17.5]} 18... Qa5 {[%clk 0:02:04.4]} 19. Red1
{[%clk 0:00:56.7]} 19... Qxa2 {[%clk 0:02:03.7]} 20. Kg2 {[%clk 0:00:39.2]}
20... c4 {[%clk 0:01:55.8]} 21. e5 {[%clk 0:00:30.4]} 21... Rf5 {[%clk
0:01:44.1]} 22. Qe4 {[%clk 0:00:14.7]} 22... Qxb2 {[%clk 0:01:37.6]} 23. g4
{[%clk 0:00:14.7]} 23... Rxf4 {[%clk 0:01:35]} 24. Qxf4 {[%clk 0:00:15.6]} 24...
Bxe5 {[%clk 0:01:29.8]} 25. Nxe5 {[%clk 0:00:14.7]} 25... Qxe5 {[%clk
0:01:30.3]} 26. Rd8+ {[%clk 0:00:13.8]} 26... Rxd8 {[%clk 0:01:29.7]} 27. Rxd8+
{[%clk 0:00:12.9]} 27... Kg7 {[%clk 0:01:30.2]} 28. Qxe5+ {[%clk 0:00:10.3]}
28... Nxe5 {[%clk 0:01:31.1]} 29. Rb8 {[%clk 0:00:08.9]} 29... b6 {[%clk
0:01:26.7]} 30. Rc8 {[%clk 0:00:04.6]} 30... a5 {[%clk 0:01:17]} 31. f4 {[%clk
0:00:03.7]} 31... Nxg4 {[%clk 0:01:17.1]} 32. Kf3 {[%clk 0:00:03.2]} 32... Nxh2+
{[%clk 0:01:16]} 33. Kf2 {[%clk 0:00:02.6]} 33... Ng4+ {[%clk 0:01:15.8]} 34.
Kf3 {[%clk 0:00:03]} 34... Nf6 {[%clk 0:01:10.4]} 35. Rxc4 {[%clk 0:00:03.6]}
35... Kf8 {[%clk 0:01:10.8]} 36. Rc6 {[%clk 0:00:04]} 36... Nd7 {[%clk 0:01:11]}
37. Rd6 {[%clk 0:00:04.1]} 37... Ke7 {[%clk 0:01:11.4]} 38. Rc6 {[%clk
0:00:04.6]} 38... h5 {[%clk 0:01:08.9]} 39. Ke4 {[%clk 0:00:04.7]} 39... a4
{[%clk 0:01:03.7]} 40. f5 {[%clk 0:00:04.6]} 40... g5 {[%clk 0:01:00.1]} 41. f6+
{[%clk 0:00:04]} 41... Nxf6+ {[%clk 0:00:59.9]} 42. Kf5 {[%clk 0:00:04.5]} 42...
Nd5 {[%clk 0:00:56.7]} 43. Kxg5 {[%clk 0:00:04.4]} 43... a3 {[%clk 0:00:53.6]}
44. Rc2 {[%clk 0:00:04]} 44... b5 {[%clk 0:00:51]} 45. Kxh5 {[%clk 0:00:03.8]}
45... b4 {[%clk 0:00:51.5]} 46. Rc5 {[%clk 0:00:02.8]} 46... a2 {[%clk
0:00:49.5]} 47. Ra5 {[%clk 0:00:03.1]} 47... b3 {[%clk 0:00:50]} 48. Kg4 {[%clk
0:00:03.3]} 48... b2 {[%clk 0:00:50]} 0-1

[Event "*** SCC Grand Prix: Titled Tuesday Blitz"]
[Site "Chess.com"]
[Date "2020.06.02"]
[Round "3"]
[White "MateSchmate"]
[Black "Lubov_Gordyk"]
[Result "1-0"]
[WhiteElo "2398"]
[BlackElo "2573"]
[TimeControl "180+1"]
[EndTime "10:29:10 PDT"]
[Termination "MateSchmate won by resignation"]

1. e4 {[%clk 0:03:00.9]} 1... e5 {[%clk 0:02:58.7]} 2. Nf3 {[%clk 0:03:00.6]}
2... d6 {[%clk 0:02:58.4]} 3. d4 {[%clk 0:03:00.2]} 3... exd4 {[%clk 0:02:58.8]}
4. Nxd4 {[%clk 0:03:01.1]} 4... Nf6 {[%clk 0:02:59.1]} 5. Nc3 {[%clk 0:03:01]}
5... Be7 {[%clk 0:02:59.6]} 6. Bc4 {[%clk 0:03:01]} 6... O-O {[%clk 0:02:59.8]}
7. O-O {[%clk 0:03:01]} 7... a6 {[%clk 0:03:00.2]} 8. a4 {[%clk 0:03:00.1]} 8...
Re8 {[%clk 0:03:00.5]} 9. Re1 {[%clk 0:02:54.8]} 9... Nbd7 {[%clk 0:03:00.8]}
10. Be3 {[%clk 0:02:53.5]} 10... Ne5 {[%clk 0:02:57.3]} 11. Be2 {[%clk
0:02:53.3]} 11... h6 {[%clk 0:02:54.7]} 12. h3 {[%clk 0:02:50.9]} 12... Bf8
{[%clk 0:02:53.8]} 13. f4 {[%clk 0:02:50.1]} 13... Ng6 {[%clk 0:02:51.5]} 14.
Bf3 {[%clk 0:02:48.3]} 14... Bd7 {[%clk 0:02:42.3]} 15. Qd2 {[%clk 0:02:46.1]}
15... c5 {[%clk 0:02:41.4]} 16. Nf5 {[%clk 0:02:44.2]} 16... Bc6 {[%clk
0:02:33.6]} 17. Bf2 {[%clk 0:02:31.6]} 17... Qc7 {[%clk 0:02:17.9]} 18. g4
{[%clk 0:02:24.3]} 18... Rad8 {[%clk 0:01:52]} 19. g5 {[%clk 0:02:21.6]} 19...
hxg5 {[%clk 0:01:51.6]} 20. fxg5 {[%clk 0:02:22.5]} 20... Nh7 {[%clk 0:01:50]}
21. h4 {[%clk 0:02:14.4]} 21... Ne5 {[%clk 0:01:49.8]} 22. Bg2 {[%clk
0:02:10.1]} 22... g6 {[%clk 0:01:49.5]} 23. Ne3 {[%clk 0:02:07.2]} 23... Bg7
{[%clk 0:01:46.4]} 24. Ncd5 {[%clk 0:02:03.8]} 24... Qc8 {[%clk 0:01:38.3]} 25.
c3 {[%clk 0:01:51.4]} 25... f6 {[%clk 0:01:17.4]} 26. gxf6 {[%clk 0:01:38.3]}
26... Nxf6 {[%clk 0:01:17.6]} 27. Nxf6+ {[%clk 0:01:38.4]} 27... Bxf6 {[%clk
0:01:18.1]} 28. Nd5 {[%clk 0:01:38.8]} 28... Bxd5 {[%clk 0:01:13.4]} 29. Qxd5+
{[%clk 0:01:39.7]} 29... Qe6 {[%clk 0:01:12.4]} 30. Rad1 {[%clk 0:01:29.2]}
30... Qxd5 {[%clk 0:01:11.1]} 31. Rxd5 {[%clk 0:01:30.1]} 31... Kf7 {[%clk
0:01:10.8]} 32. Red1 {[%clk 0:01:28.3]} 32... Ke7 {[%clk 0:01:11.1]} 33. b4
{[%clk 0:01:19.5]} 33... cxb4 {[%clk 0:01:04.4]} 34. cxb4 {[%clk 0:01:20.4]}
34... Rh8 {[%clk 0:01:04.2]} 35. Bb6 {[%clk 0:01:10.1]} 35... Rd7 {[%clk
0:01:01.7]} 36. Bh3 {[%clk 0:01:07.3]} 36... Rdd8 {[%clk 0:00:39.5]} 37. Bxd8+
{[%clk 0:01:04.7]} 37... Rxd8 {[%clk 0:00:39.7]} 38. h5 {[%clk 0:00:48.8]} 38...
gxh5 {[%clk 0:00:39.1]} 39. Bf5 {[%clk 0:00:48]} 39... h4 {[%clk 0:00:38.7]} 40.
Kh2 {[%clk 0:00:47.5]} 40... Bg5 {[%clk 0:00:35]} 41. Kh3 {[%clk 0:00:45]} 41...
Bf6 {[%clk 0:00:35.2]} 42. b5 {[%clk 0:00:43.5]} 42... axb5 {[%clk 0:00:30.7]}
43. Rxb5 {[%clk 0:00:44.4]} 43... Bg5 {[%clk 0:00:21.8]} 44. Rxb7+ {[%clk
0:00:43.2]} 44... Kf6 {[%clk 0:00:22.3]} 45. a5 {[%clk 0:00:39.3]} 45... Bf4
{[%clk 0:00:19.4]} 46. a6 {[%clk 0:00:37.1]} 46... Nf3 {[%clk 0:00:16.5]} 47.
Kg4 {[%clk 0:00:24.7]} 47... Rg8+ {[%clk 0:00:05.8]} 48. Kxf4 {[%clk 0:00:22.8]}
1-0

[Event "*** SCC Grand Prix: Titled Tuesday Blitz"]
[Site "Chess.com"]
[Date "2020.06.02"]
[Round "3"]
[White "Khamrakulov_Djurabek"]
[Black "saikrishnaReturns"]
[Result "0-1"]
[WhiteElo "2812"]
[BlackElo "2643"]
[TimeControl "180+1"]
[EndTime "10:29:11 PDT"]
[Termination "saikrishnaReturns won by checkmate"]

1. e4 {[%clk 0:03:00.9]} 1... e5 {[%clk 0:02:59.6]} 2. Nf3 {[%clk 0:03:00.6]}
2... Nc6 {[%clk 0:02:59.3]} 3. d4 {[%clk 0:03:01.2]} 3... exd4 {[%clk
0:02:59.1]} 4. Nxd4 {[%clk 0:03:02.1]} 4... Nf6 {[%clk 0:02:59.3]} 5. Nc3 {[%clk
0:03:02.4]} 5... Bb4 {[%clk 0:02:58.7]} 6. Nxc6 {[%clk 0:03:02.2]} 6... bxc6
{[%clk 0:02:59.6]} 7. Bd3 {[%clk 0:03:02.4]} 7... d5 {[%clk 0:02:59.9]} 8. exd5
{[%clk 0:03:02.8]} 8... Qe7+ {[%clk 0:03:00.3]} 9. Qe2 {[%clk 0:02:56.4]} 9...
Qxe2+ {[%clk 0:02:58]} 10. Kxe2 {[%clk 0:02:56.7]} 10... Bxc3 {[%clk 0:02:44.2]}
11. bxc3 {[%clk 0:02:55.9]} 11... Nxd5 {[%clk 0:02:44.5]} 12. c4 {[%clk
0:02:49.4]} 12... Nb6 {[%clk 0:02:42.2]} 13. Bf4 {[%clk 0:02:34.4]} 13... Be6
{[%clk 0:02:36.7]} 14. Bxc7 {[%clk 0:02:32.2]} 14... Bxc4 {[%clk 0:02:30.5]} 15.
Bxc4 {[%clk 0:02:00]} 15... Nxc4 {[%clk 0:02:29.3]} 16. Rhd1 {[%clk 0:01:57.6]}
16... O-O {[%clk 0:02:24.7]} 17. a4 {[%clk 0:01:40.5]} 17... Rfe8+ {[%clk
0:02:19.6]} 18. Kf1 {[%clk 0:01:40.3]} 18... Re7 {[%clk 0:02:19.4]} 19. Bd6
{[%clk 0:01:32.6]} 19... Re6 {[%clk 0:02:10.4]} 20. Bc5 {[%clk 0:01:28.2]} 20...
Re5 {[%clk 0:02:09.5]} 21. Bxa7 {[%clk 0:01:26.3]} 21... h5 {[%clk 0:01:51.9]}
22. Bd4 {[%clk 0:01:14.3]} 22... Rea5 {[%clk 0:01:51.5]} 23. Bc3 {[%clk
0:01:11.3]} 23... Rxa4 {[%clk 0:01:50.6]} 24. Rd8+ {[%clk 0:01:03.4]} 24... Rxd8
{[%clk 0:01:48.1]} 25. Rxa4 {[%clk 0:01:03.5]} 25... Nb6 {[%clk 0:01:35.5]} 26.
Ra6 {[%clk 0:01:01.3]} 26... Rb8 {[%clk 0:01:19.7]} 27. Bd4 {[%clk 0:00:57.9]}
27... Nd5 {[%clk 0:01:19.5]} 28. Rxc6 {[%clk 0:00:55.3]} 28... Nf4 {[%clk
0:01:17.8]} 29. f3 {[%clk 0:00:55]} 29... h4 {[%clk 0:01:08.8]} 30. Kf2 {[%clk
0:00:54]} 30... Re8 {[%clk 0:01:00.7]} 31. g3 {[%clk 0:00:46.9]} 31... hxg3+
{[%clk 0:00:37.3]} 32. hxg3 {[%clk 0:00:47.8]} 32... Nh3+ {[%clk 0:00:35.7]} 33.
Kg2 {[%clk 0:00:44.4]} 33... Ng5 {[%clk 0:00:35.4]} 34. f4 {[%clk 0:00:41]}
34... Ne4 {[%clk 0:00:29.7]} 35. c4 {[%clk 0:00:35.9]} 35... Nd2 {[%clk
0:00:28.3]} 36. Kf2 {[%clk 0:00:32.9]} 36... Ne4+ {[%clk 0:00:27]} 37. Kf3
{[%clk 0:00:30.9]} 37... Nd2+ {[%clk 0:00:27.1]} 38. Kg4 {[%clk 0:00:31.3]}
38... Re4 {[%clk 0:00:20.7]} 39. Rc8+ {[%clk 0:00:26.9]} 39... Kh7 {[%clk
0:00:20.4]} 40. Rd8 {[%clk 0:00:26.6]} 40... Nxc4 {[%clk 0:00:20.1]} 41. Rd7
{[%clk 0:00:26.6]} 41... Kg8 {[%clk 0:00:16.4]} 42. Rd8+ {[%clk 0:00:23.2]}
42... Kh7 {[%clk 0:00:14.1]} 43. Kh5 {[%clk 0:00:22.4]} 43... Ne3 {[%clk
0:00:12.5]} 44. Rd7 {[%clk 0:00:18.7]} 44... Kg8 {[%clk 0:00:12.9]} 45. Kg5
{[%clk 0:00:18.2]} 45... Nf1 {[%clk 0:00:12.2]} 46. g4 {[%clk 0:00:17.1]} 46...
Nh2 {[%clk 0:00:12.3]} 47. Kf5 {[%clk 0:00:13.1]} 47... Re6 {[%clk 0:00:11.9]}
48. Rd8+ {[%clk 0:00:10.8]} 48... Kh7 {[%clk 0:00:12.3]} 49. Rd7 {[%clk
0:00:10.5]} 49... g6+ {[%clk 0:00:12.2]} 50. Kg5 {[%clk 0:00:10.5]} 50... Nf3#
{[%clk 0:00:12.9]} 0-1

[Event "*** SCC Grand Prix: Titled Tuesday Blitz"]
[Site "Chess.com"]
[Date "2020.06.02"]
[Round "3"]
[White "DanielMieles1985"]
[Black "CyberneticLion"]
[Result "1-0"]
[WhiteElo "2596"]
[BlackElo "2388"]
[TimeControl "180+1"]
[EndTime "10:29:11 PDT"]
[Termination "DanielMieles1985 won by resignation"]

1. c4 {[%clk 0:02:30.9]} 1... e6 {[%clk 0:02:59.7]} 2. Nc3 {[%clk 0:02:30.8]}
2... d5 {[%clk 0:02:59.8]} 3. e3 {[%clk 0:02:31.4]} 3... Nf6 {[%clk 0:02:59.9]}
4. Nf3 {[%clk 0:02:32]} 4... c6 {[%clk 0:02:59.4]} 5. b3 {[%clk 0:02:32.1]} 5...
Nbd7 {[%clk 0:02:59.9]} 6. Bb2 {[%clk 0:02:32]} 6... Bd6 {[%clk 0:03:00.3]} 7.
Qc2 {[%clk 0:02:30.9]} 7... O-O {[%clk 0:02:59.8]} 8. g4 {[%clk 0:02:31.4]} 8...
dxc4 {[%clk 0:02:54]} 9. bxc4 {[%clk 0:02:27.3]} 9... b5 {[%clk 0:02:41.9]} 10.
cxb5 {[%clk 0:02:04.8]} 10... cxb5 {[%clk 0:02:42.8]} 11. Nxb5 {[%clk
0:02:05.7]} 11... Qe7 {[%clk 0:02:40.3]} 12. Qc6 {[%clk 0:01:46.3]} 12... Rb8
{[%clk 0:02:39.7]} 13. Nxd6 {[%clk 0:01:33.9]} 13... Rxb2 {[%clk 0:02:31.4]} 14.
Nxc8 {[%clk 0:01:33.6]} 14... Qb4 {[%clk 0:02:28.4]} 15. Be2 {[%clk 0:01:24.5]}
15... Ne5 {[%clk 0:02:26.7]} 16. Ne7+ {[%clk 0:01:16.7]} 16... Kh8 {[%clk
0:02:23.6]} 17. Qc1 {[%clk 0:01:04.9]} 17... Qb7 {[%clk 0:00:58.2]} 18. Rg1
{[%clk 0:00:42.7]} 18... Nfd7 {[%clk 0:00:25.9]} 19. Nxe5 {[%clk 0:00:32.1]}
19... Nxe5 {[%clk 0:00:26.8]} 20. f4 {[%clk 0:00:32.8]} 20... Nd7 {[%clk
0:00:21.5]} 21. Bf3 {[%clk 0:00:28.2]} 21... Qb4 {[%clk 0:00:18]} 22. Nc6 {[%clk
0:00:24.2]} 22... Qb6 {[%clk 0:00:17.3]} 23. Nd4 {[%clk 0:00:21.3]} 23... Rb8
{[%clk 0:00:16.7]} 24. Nb3 {[%clk 0:00:19.5]} 24... Rxb3 {[%clk 0:00:07.6]} 25.
axb3 {[%clk 0:00:20.4]} 25... Nc5 {[%clk 0:00:08.5]} 26. Qc3 {[%clk 0:00:15.9]}
26... Qb5 {[%clk 0:00:06.9]} 27. Be2 {[%clk 0:00:15.8]} 27... Qb6 {[%clk
0:00:04.8]} 28. Rc1 {[%clk 0:00:15.8]} 28... Nxb3 {[%clk 0:00:03.1]} 29. Qc8+
{[%clk 0:00:15.2]} 29... Qd8 {[%clk 0:00:03.7]} 30. Qxd8+ {[%clk 0:00:15.3]}
30... Rxd8 {[%clk 0:00:04.6]} 31. Rb1 {[%clk 0:00:14.9]} 31... Nxd2 {[%clk
0:00:05.1]} 32. Rd1 {[%clk 0:00:15.1]} 32... a5 {[%clk 0:00:04.7]} 33. Rxd2
{[%clk 0:00:10.2]} 33... Ra8 {[%clk 0:00:05.6]} 34. Kf2 {[%clk 0:00:09.5]} 34...
a4 {[%clk 0:00:06.5]} 35. Ra1 {[%clk 0:00:08.1]} 35... g6 {[%clk 0:00:06.9]} 36.
g5 {[%clk 0:00:07.6]} 36... Kg7 {[%clk 0:00:07.8]} 37. h4 {[%clk 0:00:07.6]}
37... h6 {[%clk 0:00:08.4]} 38. Bf3 {[%clk 0:00:07.6]} 38... hxg5 {[%clk
0:00:09.3]} 1-0

[Event "*** SCC Grand Prix: Titled Tuesday Blitz"]
[Site "Chess.com"]
[Date "2020.06.02"]
[Round "3"]
[White "mattcolins2025"]
[Black "LiamPutnam2008"]
[Result "1-0"]
[WhiteElo "2370"]
[BlackElo "2520"]
[TimeControl "180+1"]
[EndTime "10:29:12 PDT"]
[Termination "mattcolins2025 won by checkmate"]

1. d4 {[%clk 0:03:00.9]} 1... Nf6 {[%clk 0:02:59.4]} 2. c4 {[%clk 0:03:01.3]}
2... e6 {[%clk 0:02:56.1]} 3. Nc3 {[%clk 0:03:01.7]} 3... Bb4 {[%clk 0:02:55.4]}
4. Qc2 {[%clk 0:03:02.1]} 4... O-O {[%clk 0:02:54.2]} 5. a3 {[%clk 0:03:02.6]}
5... Bxc3+ {[%clk 0:02:53.2]} 6. Qxc3 {[%clk 0:03:03.5]} 6... b6 {[%clk
0:02:52.7]} 7. Bg5 {[%clk 0:03:03.4]} 7... Bb7 {[%clk 0:02:49.4]} 8. f3 {[%clk
0:03:03.6]} 8... d5 {[%clk 0:02:38.9]} 9. cxd5 {[%clk 0:03:02.7]} 9... exd5
{[%clk 0:02:39.5]} 10. e3 {[%clk 0:03:02.7]} 10... Nbd7 {[%clk 0:02:37.5]} 11.
Bd3 {[%clk 0:03:02.3]} 11... c5 {[%clk 0:02:37.2]} 12. Ne2 {[%clk 0:03:02.6]}
12... h6 {[%clk 0:02:35.9]} 13. Bh4 {[%clk 0:03:02.5]} 13... Re8 {[%clk
0:02:35.3]} 14. Bf2 {[%clk 0:03:01.7]} 14... Rc8 {[%clk 0:02:32]} 15. O-O {[%clk
0:02:57.5]} 15... cxd4 {[%clk 0:02:31.2]} 16. Qxd4 {[%clk 0:02:57.4]} 16... Nc5
{[%clk 0:02:31.9]} 17. Bc2 {[%clk 0:02:54.6]} 17... Nce4 {[%clk 0:02:02.7]} 18.
Ba4 {[%clk 0:02:51.2]} 18... Rc4 {[%clk 0:02:00.6]} 19. Qd1 {[%clk 0:02:40.3]}
19... Nxf2 {[%clk 0:01:59]} 20. Kxf2 {[%clk 0:02:39.2]} 20... Re5 {[%clk
0:01:49.4]} 21. Nd4 {[%clk 0:02:36.5]} 21... Qe7 {[%clk 0:01:43.9]} 22. Re1
{[%clk 0:02:33.3]} 22... Nh5 {[%clk 0:01:41.3]} 23. Bb3 {[%clk 0:02:30.3]} 23...
Rc5 {[%clk 0:01:33.7]} 24. Qd2 {[%clk 0:02:26.4]} 24... Ba6 {[%clk 0:01:24.6]}
25. f4 {[%clk 0:02:19.7]} 25... Re4 {[%clk 0:01:15]} 26. Nf3 {[%clk 0:02:15.5]}
26... Nf6 {[%clk 0:01:12.4]} 27. h3 {[%clk 0:02:12]} 27... Qc7 {[%clk
0:00:53.4]} 28. Rac1 {[%clk 0:02:05.7]} 28... Rec4 {[%clk 0:00:42.8]} 29. Rxc4
{[%clk 0:01:49]} 29... Bxc4 {[%clk 0:00:36]} 30. Bc2 {[%clk 0:01:48.7]} 30...
Bb3 {[%clk 0:00:30.1]} 31. Bb1 {[%clk 0:01:46.3]} 31... Bc2 {[%clk 0:00:27.1]}
32. Kg1 {[%clk 0:01:41.9]} 32... Ne4 {[%clk 0:00:26.6]} 33. Qb4 {[%clk
0:01:27.6]} 33... Bxb1 {[%clk 0:00:24.1]} 34. Rxb1 {[%clk 0:01:26.8]} 34... Rc1+
{[%clk 0:00:24.8]} 35. Rxc1 {[%clk 0:01:26.4]} 35... Qxc1+ {[%clk 0:00:25.7]}
36. Kh2 {[%clk 0:01:26.9]} 36... Qxe3 {[%clk 0:00:25.6]} 37. Qe7 {[%clk
0:01:20.2]} 37... Qxf4+ {[%clk 0:00:25.6]} 38. Kg1 {[%clk 0:01:20.3]} 38... Qc1+
{[%clk 0:00:15.3]} 39. Kh2 {[%clk 0:01:19.5]} 39... Qxb2 {[%clk 0:00:14.1]} 40.
Qd8+ {[%clk 0:01:17.2]} 40... Kh7 {[%clk 0:00:14.7]} 41. Qxd5 {[%clk 0:01:17.5]}
41... Nf6 {[%clk 0:00:14.5]} 42. Qf5+ {[%clk 0:01:17.4]} 42... g6 {[%clk
0:00:14.4]} 43. Qc8 {[%clk 0:01:12.3]} 43... Kg7 {[%clk 0:00:12.9]} 44. Qc7
{[%clk 0:01:10.3]} 44... Qb5 {[%clk 0:00:06.9]} 45. Ne5 {[%clk 0:01:08.2]} 45...
Qd5 {[%clk 0:00:06.9]} 46. Nf3 {[%clk 0:01:04.1]} 46... a5 {[%clk 0:00:06.6]}
47. Qxb6 {[%clk 0:01:02.6]} 47... a4 {[%clk 0:00:07.2]} 48. Qb4 {[%clk 0:00:58]}
48... Qb3 {[%clk 0:00:07.3]} 49. Qe7 {[%clk 0:00:58]} 49... Qd5 {[%clk
0:00:06.3]} 50. Qb4 {[%clk 0:00:57.6]} 50... Qb3 {[%clk 0:00:05.7]} 51. Qe7
{[%clk 0:00:57.7]} 51... h5 {[%clk 0:00:06.2]} 52. Nd4 {[%clk 0:00:46.7]} 52...
Qd5 {[%clk 0:00:06]} 53. Nf3 {[%clk 0:00:43.8]} 53... Ne4 {[%clk 0:00:06.1]} 54.
Ne5 {[%clk 0:00:37.5]} 54... Nd6 {[%clk 0:00:04.3]} 55. Nd7 {[%clk 0:00:34.5]}
55... Nf5 {[%clk 0:00:02.8]} 56. Qf8+ {[%clk 0:00:33.7]} 56... Kh7 {[%clk
0:00:03.2]} 57. Nf6# {[%clk 0:00:34.3]} 1-0